bitfinex-derivatives/quotes_SOLF0:USTF0_20260213
["timestamp","ask_amount","ask_price","bid_price","bid_amount"]
[1770988560662,11.2781,79.861,79.831,3.60305496]
[1770988560962,9.15110363,79.86,79.831,3.60305496]
[1770988561163,11.2781,79.861,79.831,3.60305496]
[1770988561357,9.15118675,79.86,79.831,3.60305496]
[1770988561662,11.2781,79.861,79.831,3.60305496]
[1770988561861,9.15094086,79.86,79.831,3.60305496]
[1770988562062,11.2781,79.861,79.831,3.60305496]
[1770988562250,9.14754973,79.86,79.831,3.60305496]
[1770988562456,11.2781,79.861,79.831,3.60305496]
[1770988562652,9.14665889,79.86,79.831,3.60305496]
[1770988562860,4.07757445,79.867,79.832,11.282]
[1770988563060,13.22420888,79.866,79.833,3.58568723]
[1770988563263,4.07757445,79.866,79.833,3.58568723]
[1770988563463,15.35487445,79.866,79.833,3.58568723]
[1770988563766,4.07757445,79.866,79.833,3.58568723]
[1770988563958,9.14843926,79.865,79.833,3.58568723]
[1770988564164,11.2764,79.873,79.838,3.58583712]
[1770988564356,9.1485943,79.872,79.838,3.58583712]
[1770988564558,9.1485943,79.871,79.838,3.58583712]
[1770988564767,9.1485943,79.87,79.838,3.58583712]
[1770988564963,9.1485943,79.869,79.838,3.58583712]
[1770988565267,4.07757445,79.871,79.808,22.5709]
[1770988565268,4.07757445,79.871,79.84,3.21263685]
[1770988565462,9.14937967,79.87,79.84,3.21263685]
[1770988565656,9.14937967,79.869,79.84,3.21263685]
[1770988565968,4.07757445,79.871,79.84,3.21263685]
[1770988566153,9.14938072,79.87,79.84,3.21263685]
[1770988566358,9.14938072,79.869,79.842,11.2806]
[1770988566561,9.14938072,79.869,79.803,99.94]
[1770988566562,9.15054947,79.881,79.851,3.58408067]
[1770988566754,9.15114567,79.891,79.86,3.21263685]
[1770988566962,13.22872012,79.89,79.851,3.58408067]
[1770988567163,9.15114567,79.889,79.851,3.58408067]
[1770988567362,9.15114567,79.888,79.851,3.58408067]
[1770988567565,9.15114567,79.887,79.851,3.58408067]
[1770988567763,9.15114567,79.886,79.857,11.2785]
[1770988567960,4.07757445,79.89,79.857,11.2785]
[1770988568267,11.2736,79.893,79.857,11.2785]
[1770988568268,13.22536661,79.889,79.857,11.2785]
[1770988568462,4.07757445,79.887,79.851,3.58408067]
[1770988568767,4.07757445,79.883,79.845,3.6105234]
[1770988569069,4.07757445,79.883,79.851,3.610505]
[1770988569866,4.07757445,79.883,79.853,11.2791]
[1770988570669,4.07757445,79.881,79.845,11.2802]
[1770988570866,4.07757445,79.879,79.845,11.2802]
[1770988571467,3.21263685,79.87,79.82,3.21263685]
[1770988571676,4.07757445,79.868,79.82,3.21263685]
[1770988571971,4.07757445,79.866,79.82,3.21263685]
[1770988572158,4.07757445,79.864,79.82,3.21263685]
[1770988572356,4.07757445,79.864,79.821,3.68612206]
[1770988572758,4.07757445,79.86,79.822,11.2835]
[1770988573164,4.07757445,79.86,79.821,3.68612206]
[1770988573566,4.07757445,79.86,79.829,11.2825]
[1770988574566,4.07757445,79.86,79.823,3.58192549]
[1770988575870,4.07757445,79.858,79.823,3.58192549]
[1770988577068,4.07757445,79.858,79.825,3.56858068]
[1770988577673,4.07757445,79.856,79.825,3.56858068]
[1770988579574,11.2777,79.864,79.828,3.55511347]
[1770988579772,4.07757445,79.864,79.83,3.21263685]
[1770988579968,4.07757445,79.864,79.82,6.77840571]
[1770988580274,4.07757445,79.861,79.822,3.56576886]
[1770988580667,4.07757445,79.855,79.821,11.2835]
[1770988581774,4.07757445,79.846,79.801,3.58061535]
[1770988582070,4.07757445,79.839,79.801,3.58061535]
[1770988582263,4.07757445,79.839,79.802,11.2862]
[1770988584774,4.07757445,79.837,79.791,14.83985121]
[1770988585574,11.2837,79.821,79.791,3.55205121]
[1770988586281,15.36187445,79.817,79.781,11.2892]
[1770988587173,4.07757445,79.817,79.786,3.46549915]
[1770988587383,11.2833,79.824,79.791,3.46549915]
[1770988588273,4.07757445,79.838,79.801,3.32113838]
[1770988589177,11.2814,79.837,79.801,3.32113838]
[1770988590073,11.282,79.833,79.801,3.32113838]
[1770988590378,4.07757445,79.836,79.801,3.32113838]
[1770988592270,3.7971973,79.847,79.809,3.3201673]
[1770988592471,11.279,79.855,79.811,3.3201673]
[1770988592670,3.7971973,79.858,79.811,3.3201673]
[1770988593770,11.2799,79.848,79.811,3.3201673]
[1770988594274,11.279,79.855,79.811,3.3201673]
[1770988594678,15.0761973,79.855,79.811,3.3201673]
[1770988595279,11.2779,79.862,79.821,3.32060134]
[1770988595581,15.29657296,79.862,79.821,3.32060134]
[1770988595778,4.01867296,79.862,79.831,3.32107693]
[1770988595972,4.01867296,79.872,79.84,3.21263685]
[1770988596169,4.01867296,79.882,79.841,3.32107693]
[1770988597481,9.13412437,79.908,79.83,6.53346348]
[1770988597482,4.01867296,79.868,79.83,6.53346348]
[1770988598878,11.2774,79.866,79.83,6.53346348]
[1770988599280,11.2774,79.866,79.83,3.32082663]
[1770988600681,11.2774,79.866,79.831,3.28327031]
[1770988603382,4.01867296,79.868,79.831,3.28327031]
[1770988603689,4.01867296,79.878,79.841,3.26969243]
[1770988604585,4.01867296,79.878,79.844,14.54997427]
[1770988604789,4.01867296,79.878,79.845,3.26957427]
[1770988606288,4.01867296,79.87,79.835,3.18005353]
[1770988607492,4.01867296,79.883,79.85,3.21263685]
[1770988607685,4.01867296,79.883,79.841,3.17994046]
[1770988608994,4.01867296,79.883,79.848,11.2798]
[1770988609586,4.01867296,79.883,79.841,3.17994046]
[1770988610496,4.01867296,79.881,79.841,3.17994046]
[1770988611699,4.01867296,79.879,79.841,3.17994046]
[1770988613205,15.29427296,79.878,79.841,3.17994046]
[1770988613500,4.01867296,79.877,79.841,3.17994046]
[1770988617702,4.01867296,79.875,79.842,14.4700833]
[1770988618699,4.01867296,79.875,79.85,3.21263685]
[1770988619606,4.01867296,79.867,79.832,11.2821]
[1770988620706,11.2773,79.866,79.832,14.40658564]
[1770988621096,15.40076016,79.866,79.832,14.40658564]
[1770988621301,11.2778,79.863,79.832,3.12448564]
[1770988621610,4.12346016,79.865,79.832,3.12448564]
[1770988621903,4.12346016,79.875,79.84,3.21263685]
[1770988622096,4.12346016,79.875,79.841,3.06746793]
[1770988623201,22.5417,79.912,79.804,22.572]
[1770988623202,15.39806016,79.885,79.85,3.21263685]
[1770988623605,4.12346016,79.885,79.851,11.2794]
[1770988625310,4.12346016,79.885,79.849,3.06737517]
[1770988625311,4.12346016,79.897,79.861,2.97674822]
[1770988625506,175.1688,79.983,79.871,2.97674822]
[1770988625507,4.12346016,79.919,79.871,2.97674822]
[1770988626306,4.12346016,79.919,79.89,3.21110604]
[1770988626611,4.12346016,79.93,79.89,3.21110604]
[1770988626911,4.12346016,79.927,79.89,3.21110604]
[1770988627306,4.12346016,79.927,79.883,2.96231438]
[1770988627614,4.12346016,79.927,79.89,3.21110604]
[1770988628702,4.12346016,79.919,79.87,6.05870966]
[1770988628909,4.12346016,79.919,79.87,3.21110604]
[1770988629407,4.12346016,79.909,79.873,11.2762]
[1770988630710,4.12346016,79.903,79.863,11.2776]
[1770988631817,4.12346016,79.901,79.863,11.2776]
[1770988634718,4.12346016,79.895,79.86,3.21110604]
[1770988636015,4.12346016,79.895,79.862,11.2778]
[1770988636716,4.12346016,79.895,79.86,6.14121545]
[1770988639718,11.2736,79.893,79.86,6.14121545]
[1770988640515,4.12346016,79.895,79.86,6.14121545]
[1770988642717,11.2733,79.894,79.86,6.14121545]
[1770988644518,11.2733,79.894,79.861,2.90310729]
[1770988645113,4.12346016,79.895,79.829,185.58]
[1770988645114,4.12346016,79.918,79.871,2.90310564]
[1770988645319,4.12346016,79.918,79.88,3.21110604]
[1770988645523,4.12346016,79.918,79.89,3.21110604]
[1770988646115,4.12346016,79.918,79.883,2.90303748]
[1770988646722,4.12346016,79.92,79.883,2.90303748]
[1770988647119,4.12346016,79.917,79.87,3.21110604]
[1770988647821,11.2713,79.909,79.876,11.2759]
[1770988648421,11.2704,79.915,79.879,2.92123816]
[1770988648614,11.2704,79.915,79.88,3.21110604]
[1770988649017,4.12346016,79.908,79.872,11.2764]
[1770988649329,4.12346016,79.908,79.868,2.92123645]
[1770988650624,3.79874871,79.899,79.85,3.21110604]
[1770988651231,3.21110604,79.9,79.845,2.87476849]
[1770988651232,3.79874871,79.884,79.845,2.87476849]
[1770988652332,3.79874871,79.884,79.85,3.21110604]
[1770988652721,3.79874871,79.896,79.86,3.21110604]
[1770988653730,11.2741,79.889,79.86,3.21110604]
[1770988654133,3.79874871,79.896,79.851,2.88737295]
[1770988654929,11.2732,79.895,79.857,11.2785]
[1770988656133,11.2732,79.895,79.857,14.17411343]
[1770988656334,11.2732,79.895,79.86,3.21110604]
[1770988657023,15.30752873,79.907,79.871,2.8955007]
[1770988657229,4.03592873,79.933,79.881,2.8955007]
[1770988657433,4.03592873,79.929,79.881,2.8955007]
[1770988658432,4.03592873,79.923,79.881,2.8955007]
[1770988658827,11.268,79.932,79.894,2.88289072]
[1770988659039,4.03592873,79.931,79.894,2.88289072]
[1770988659743,4.03592873,79.92,79.88,6.07926701]
[1770988660836,4.03592873,79.922,79.881,3.82250969]
[1770988661436,11.2704,79.915,79.881,3.82250969]
[1770988662138,4.03592873,79.922,79.885,3.82250969]
[1770988663131,11.2695,79.921,79.89,3.21110604]
[1770988663533,11.2695,79.921,79.891,3.82250969]
[1770988665438,4.03592873,79.934,79.894,3.82250969]
[1770988665842,4.03592873,79.934,79.9,3.21110604]
[1770988666943,4.03592873,79.934,79.902,11.2721]
[1770988668343,4.03592873,79.934,79.908,11.2713]
[1770988668738,4.03592873,79.934,79.9,7.03361573]
[1770988669153,4.03592873,79.934,79.9,18.30601573]
[1770988670347,4.03592873,79.948,79.907,3.82250969]
[1770988670746,4.03592873,79.948,79.91,3.21110604]
[1770988671750,4.03592873,79.96,79.921,3.82250969]
[1770988672247,4.03592873,79.96,79.924,3.82250969]
[1770988672443,15.29852873,79.971,79.924,3.82250969]
[1770988672645,4.03592873,79.97,79.924,3.82250969]
[1770988673443,4.03592873,79.97,79.926,3.82250969]
[1770988673648,4.03592873,79.968,79.92,3.21110604]
[1770988674650,4.03592873,79.968,79.914,3.82250969]
[1770988674850,4.03592873,79.955,79.911,3.82250969]
[1770988675446,4.03592873,79.967,79.923,3.82250969]
[1770988676553,4.03592873,79.967,79.932,15.09040969]
[1770988676747,11.2617,79.977,79.933,3.82250969]
[1770988677842,11.2617,79.977,79.935,3.82250969]
[1770988678251,4.03592873,79.979,79.941,3.82250969]
[1770988678555,4.03592873,79.979,79.943,11.2663]
[1770988682763,4.03592873,79.979,79.949,11.2654]
[1770988682965,4.17544767,79.996,79.951,3.78943178]
[1770988683763,4.17544767,79.994,79.955,11.2646]
[1770988686060,4.17544767,79.994,79.96,11.264]
[1770988686566,4.17544767,79.994,79.96,14.46726698]
[1770988687063,4.17544767,79.994,79.96,11.264]
[1770988688667,4.17544767,79.994,79.956,3.78943178]
[1770988688866,4.17544767,79.994,79.932,3.78943178]
[1770988689066,4.17544767,79.989,79.932,3.78943178]
[1770988689567,4.17544767,79.989,79.94,3.20326698]
[1770988690455,4.17544767,79.973,79.932,3.78943178]
[1770988690661,4.17544767,79.969,79.932,3.78943178]
[1770988691063,4.17544767,79.969,79.935,3.78943178]
[1770988691266,7.37871465,79.98,79.935,3.78943178]
[1770988691570,4.17544767,79.98,79.941,3.78943178]
[1770988692866,4.17544767,79.98,79.943,11.2663]
[1770988694273,4.17544767,79.98,79.95,11.2654]
[1770988694474,14.46316698,79.99,79.951,3.78943178]
[1770988694668,4.17544767,79.989,79.951,3.78943178]
[1770988695876,4.17544767,79.989,79.953,11.2649]
[1770988697175,4.17544767,79.989,79.957,11.2643]
[1770988697378,14.46176698,80.0,79.958,3.78943178]
[1770988698575,11.2585,80.0,79.958,3.78943178]
[1770988698775,11.2593,79.994,79.958,3.78943178]
[1770988698978,15.43474767,79.994,79.958,3.78943178]
[1770988699874,4.17544767,79.993,79.958,3.78943178]
[1770988700482,4.17544767,79.989,79.952,11.265]
[1770988704779,4.17544767,79.989,79.957,11.2643]
[1770988704986,4.17544767,80.0,79.96,3.20326698]
[1770988705286,4.17544767,80.0,79.961,3.78943178]
[1770988706583,4.17544767,79.999,79.967,11.263]
[1770988708585,4.17544767,79.999,79.973,11.2622]
[1770988710491,11.2576,80.006,79.973,11.2622]
[1770988710792,4.01204279,80.029,79.981,4.07771988]
[1770988711790,11.256,80.018,79.981,4.07771988]
[1770988712085,4.01204279,80.029,79.981,4.07771988]
[1770988712282,4.01204279,80.019,79.981,4.07771988]
[1770988713485,4.01204279,80.019,79.987,11.2601]
[1770988716185,4.01204279,80.019,79.981,4.07771988]
[1770988717786,15.30004053,80.018,79.983,11.2608]
[1770988718682,4.04414053,80.017,79.983,11.2608]
[1770988720987,11.2549,80.025,79.988,11.26]
[1770988721182,11.2549,80.025,79.989,3.90317995]
[1770988721788,11.2549,80.025,79.99,3.20326698]
[1770988721990,11.2549,80.025,79.991,3.90317995]
[1770988723787,4.04414053,80.024,79.991,3.90317995]
[1770988723994,4.04414053,80.013,79.975,11.2619]
[1770988724193,4.04414053,80.013,79.98,3.20326698]
[1770988725090,4.04414053,80.01,79.97,3.20326698]
[1770988725298,4.04414053,80.009,79.967,11.263]
[1770988726892,4.04414053,80.003,79.967,11.263]
[1770988729390,11.2581,80.002,79.967,11.263]
[1770988729791,4.04414053,80.001,79.961,15.16697995]
[1770988730894,15.30274053,79.999,79.961,15.16697995]
[1770988731199,4.04414053,79.998,79.961,15.16697995]
[1770988732797,7.24740751,79.99,79.94,3.20326698]
[1770988732995,7.24740751,79.99,79.94,7.10644693]
[1770988733689,11.2618,79.977,79.941,11.2666]
[1770988734997,11.2618,79.977,79.94,7.10644693]
[1770988734998,4.04414053,79.972,79.932,11.2679]
[1770988735202,4.04414053,79.972,79.933,3.90317995]
[1770988735499,15.30664053,79.971,79.933,3.90317995]
[1770988735900,15.30664053,79.971,79.935,11.2675]
[1770988736497,4.04414053,79.97,79.933,3.90317995]
[1770988739594,4.04414053,79.97,79.935,11.2675]
[1770988740393,4.04414053,79.97,79.905,23.27405416]
[1770988740394,4.04414053,79.978,79.946,11.2659]
[1770988740598,4.04414053,79.978,79.93,3.81416505]
[1770988740994,11.261,79.982,79.943,3.81416505]
[1770988741901,3.96841319,79.988,79.951,3.81416505]
[1770988742102,3.96841319,80.001,79.951,3.81416505]
[1770988742290,3.96841319,80.001,79.961,3.81416505]
[1770988742291,11.2584,80.0,79.961,3.81416505]
[1770988742494,3.96841319,80.001,79.961,3.81416505]
[1770988742696,3.96841319,80.012,79.961,3.81416505]
[1770988742899,3.96841319,80.012,79.971,3.81416505]
[1770988743505,11.2576,80.006,79.971,3.81416505]
[1770988743804,3.96841319,80.005,79.971,3.81416505]
[1770988744705,11.258,80.003,79.971,3.81416505]
[1770988745105,3.96841319,80.002,79.96,7.01743203]
[1770988745298,3.96841319,80.002,79.961,3.81416505]
[1770988745494,11.2576,80.006,79.961,3.81416505]
[1770988745700,3.96841319,80.013,79.974,3.81416505]
[1770988746101,15.22501319,80.013,79.975,11.2618]
[1770988746302,15.22501319,80.013,79.976,3.81416505]
[1770988747904,11.257,80.01,79.976,3.81416505]
[1770988749806,11.2577,80.006,79.976,3.81416505]
[1770988750008,3.96841319,80.009,79.976,3.81416505]
[1770988751614,3.96841319,80.009,79.966,3.81416505]
[1770988752715,3.96841319,80.009,79.975,3.81416505]
[1770988752912,11.2562,80.016,79.975,3.81416505]
[1770988753414,15.22461319,80.016,79.975,3.81416505]
[1770988753916,3.96841319,80.01,79.975,3.81416505]
[1770988754816,11.2575,80.007,79.975,3.81416505]
[1770988755218,3.96841319,80.01,79.975,3.81416505]
[1770988756306,3.96841319,80.023,79.982,3.81416505]
[1770988757818,11.2553,80.022,79.983,11.2606]
[1770988758015,3.96841319,80.021,79.983,11.2606]
[1770988758416,3.96841319,80.009,79.971,3.81416505]
[1770988760811,3.96841319,80.009,79.972,11.2623]
[1770988762822,3.96841319,80.009,79.979,11.2613]
[1770988763029,3.96841319,80.019,79.98,3.81416505]
[1770988763421,11.2562,80.016,79.98,3.81416505]
[1770988764822,11.2552,80.023,79.983,3.81416505]
[1770988765234,3.96841319,80.022,79.983,3.81416505]
[1770988765537,3.96841319,80.029,79.991,3.81416505]
[1770988766431,3.96841319,80.019,79.98,11.2612]
[1770988766840,3.96841319,80.019,79.978,3.81416505]
[1770988767240,3.96841319,80.029,79.988,3.81416505]
[1770988767729,11.2545,80.028,79.99,3.81416505]
[1770988768034,3.96841319,80.029,79.99,3.81416505]
[1770988768940,11.2553,80.023,79.99,3.81416505]
[1770988770637,11.2556,80.02,79.982,11.2608]
[1770988770844,3.85904431,80.019,79.982,11.2608]
[1770988772246,3.85904431,80.019,79.985,11.2604]
[1770988772942,3.85904431,80.019,79.985,15.06975267]
[1770988773243,3.85904431,80.019,79.986,3.80935267]
[1770988773943,3.85904431,80.019,79.988,11.2601]
[1770988774342,3.85904431,80.038,79.999,3.80935267]
[1770988774540,3.85904431,80.049,80.001,3.80935267]
[1770988775841,11.2529,80.039,80.002,4.00080566]
[1770988776749,11.2519,80.047,80.004,11.2577]
[1770988776947,4.0587691,80.046,80.004,4.00080566]
[1770988777645,4.0587691,80.044,80.005,11.2576]
[1770988777949,4.0587691,80.044,80.004,4.00080566]
[1770988778443,11.2524,80.043,80.004,15.25860566]
[1770988779348,11.2524,80.043,80.005,4.00080566]
[1770988781546,15.3111691,80.043,80.005,4.00080566]
[1770988782142,15.3113691,80.041,80.005,4.00080566]
[1770988783351,15.3113691,80.041,80.006,11.2575]
[1770988783650,15.3113691,80.041,80.007,4.00080566]
[1770988787847,11.2526,80.041,80.007,4.00080566]
[1770988791558,11.2526,80.041,80.009,4.00080566]
[1770988794549,4.0587691,80.04,80.009,4.00080566]
[1770988797853,15.3118691,80.038,80.009,4.00080566]
[1770988799251,11.2518,80.048,80.011,15.25750566]
[1770988799457,4.0587691,80.047,80.011,15.25750566]
[1770988799856,4.0587691,80.044,80.011,15.25750566]
[1770988800364,11.2526,80.042,80.011,4.00080566]
[1770988800958,4.0587691,80.044,80.011,4.00080566]
[1770988802666,4.07319803,80.058,80.012,3.94595112]
[1770988803667,4.07319803,80.058,80.023,3.94595112]
[1770988805766,15.32369803,80.056,80.023,3.94595112]
[1770988806461,11.251,80.053,80.023,3.94595112]
[1770988806863,4.07319803,80.052,80.017,11.2559]
[1770988807562,4.07319803,80.052,79.983,22.5214]
[1770988807563,9.09443915,80.059,80.021,3.94595112]
[1770988807768,4.07319803,80.061,80.021,3.94595112]
[1770988808759,4.07319803,80.061,80.03,11.2541]
[1770988809962,4.07319803,80.061,80.025,3.94595112]
[1770988810667,4.07319803,80.061,80.027,11.2545]
[1770988813671,15.32319803,80.06,80.025,3.94595112]
[1770988813869,4.07319803,80.06,80.025,3.94595112]
[1770988814873,4.07319803,80.06,80.01,3.1988478]
[1770988814874,4.07319803,80.06,80.027,3.94595112]
[1770988818165,4.07319803,80.06,80.028,11.2544]
[1770988818672,4.07319803,80.058,80.027,3.94595112]
[1770988819473,4.07319803,80.058,80.027,15.20045112]
[1770988820669,11.2505,80.057,80.027,3.94595112]
[1770988820866,4.07319803,80.056,80.027,3.94595112]
[1770988823677,4.07319803,80.049,80.014,11.2564]
[1770988824573,4.07319803,80.049,80.023,11.255]
[1770988826381,4.07319803,80.059,80.023,15.20095112]
[1770988826580,4.07319803,80.057,80.023,15.20095112]
[1770988826881,11.2499,80.061,80.028,3.94595112]
[1770988827081,9.11210792,80.06,80.03,7.14479892]
[1770988827269,9.11210792,80.059,80.03,7.14479892]
[1770988827473,11.2504,80.057,80.03,3.94595112]
[1770988827771,4.07319803,80.058,80.03,3.94595112]
[1770988829979,4.07319803,80.057,80.021,11.2554]
[1770988831484,4.07319803,80.057,80.025,11.2547]
[1770988832185,4.07319803,80.057,80.025,15.27963012]
[1770988832571,4.07319803,80.057,80.02,3.1988478]
[1770988832779,3.86382317,80.067,80.036,4.02493012]
[1770988833573,15.11292317,80.067,80.036,4.02493012]
[1770988833777,3.86382317,80.065,80.026,4.02493012]
[1770988833986,3.1988478,80.06,80.011,4.02493012]
[1770988834284,3.86382317,80.059,80.011,4.02493012]
[1770988834775,3.86382317,80.058,80.024,11.255]
[1770988834978,3.86382317,80.058,80.011,4.02493012]
[1770988835180,3.86382317,80.056,80.011,4.02493012]
[1770988835480,3.86382317,80.054,80.011,4.02493012]
[1770988835780,3.86382317,80.054,80.015,3.9587764]
[1770988835781,11.2518,80.048,80.015,3.9587764]
[1770988835987,3.86382317,80.054,80.015,3.9587764]
[1770988836579,3.86382317,80.054,80.019,3.9587764]
[1770988837583,11.2511,80.052,80.019,3.9587764]
[1770988838688,3.86382317,80.054,80.019,3.9587764]
[1770988838888,9.10654881,80.053,80.019,3.9587764]
[1770988839092,9.10654881,80.052,80.019,3.9587764]
[1770988839286,3.86382317,80.054,80.019,3.9587764]
[1770988839592,9.10676172,80.053,80.019,3.9587764]
[1770988839782,20.35796172,80.052,80.019,3.9587764]
[1770988839981,11.2512,80.052,80.019,3.9587764]
[1770988841384,4.10330285,80.048,80.01,3.1988478]
[1770988841591,4.10330285,80.046,79.997,3.9587764]
[1770988841790,4.10330285,80.044,79.997,3.9587764]
[1770988841990,4.10330285,80.042,79.997,3.9587764]
[1770988842895,4.10330285,80.039,80.002,11.258]
[1770988843393,4.10330285,80.037,79.997,3.9587764]
[1770988844590,11.2541,80.031,79.997,3.9587764]
[1770988844786,4.10330285,80.03,79.997,3.9587764]
[1770988848304,4.10330285,80.028,79.997,3.9587764]
[1770988850802,13.20435136,80.038,80.001,3.9587764]
[1770988851000,4.10330285,80.036,80.001,3.9587764]
[1770988851199,15.35680285,80.035,80.001,3.9587764]
[1770988851597,4.10330285,80.034,80.001,3.9587764]
[1770988852709,11.2541,80.031,80.001,3.9587764]
[1770988853802,11.2546,80.028,80.001,3.9587764]
[1770988854004,4.10330285,80.027,79.983,11.2608]
[1770988854198,4.10330285,80.025,79.983,11.2608]
[1770988854402,4.10330285,80.023,79.983,11.2608]
[1770988854604,3.1988478,80.03,79.983,11.2608]
[1770988854605,4.10330285,80.021,79.983,11.2608]
[1770988854814,4.10330285,80.02,79.983,11.2608]
[1770988855112,4.10330285,80.019,79.973,11.2621]
[1770988855409,4.10330285,80.021,79.971,3.9587764]
[1770988855603,4.10330285,80.021,79.992,15.2181764]
[1770988856004,4.10330285,80.021,79.992,3.9587764]
[1770988858110,15.35710285,80.033,79.992,3.9587764]
[1770988858311,15.35710285,80.033,80.001,3.9587764]
[1770988859707,15.35710285,80.033,80.001,15.2169764]
[1770988860212,15.35710285,80.033,80.001,3.9587764]
[1770988860404,4.10330285,80.028,79.982,3.9587764]
[1770988861807,15.16104645,80.024,79.982,3.9587764]
[1770988862006,3.90594645,80.023,79.982,3.9587764]
[1770988862404,11.63634921,80.05,79.974,169.26]
[1770988862405,11.254,80.032,79.994,11.2592]
[1770988862802,11.254,80.032,79.961,22.5277]
[1770988862803,3.90594645,80.041,80.003,4.09483914]
[1770988863200,3.90594645,80.041,79.992,4.09483914]
[1770988863814,9.09709154,80.049,79.996,11.2589]
[1770988863815,3.90594645,80.036,79.996,11.2589]
[1770988864304,3.90594645,80.036,79.996,15.35373914]
[1770988864705,11.2539,80.033,79.996,15.35373914]
[1770988865108,15.15984645,80.033,79.996,15.35373914]
[1770988866608,15.16004645,80.031,79.996,15.35373914]
[1770988867315,3.90594645,80.03,79.996,15.35373914]
[1770988870313,15.16044645,80.028,79.996,15.35373914]
[1770988870508,15.16044645,80.028,79.99,3.2000631]
[1770988870509,3.90594645,80.027,79.99,3.2000631]
[1770988870918,3.90594645,80.027,79.99,7.29490224]
[1770988871720,3.90594645,80.021,79.98,4.09483914]
[1770988872508,3.90594645,80.012,79.98,4.09483914]
[1770988874819,11.2569,80.011,79.98,4.09483914]
[1770988878224,11.2569,80.011,79.98,7.29490224]
[1770988881629,15.16284645,80.011,79.98,7.29490224]
[1770988881932,3.90594645,80.008,79.976,11.2617]
[1770988882125,3.90594645,80.008,79.97,14.4625631]
[1770988882326,3.90594645,80.008,79.964,172.22]
[1770988882532,3.90594645,80.001,79.964,172.22]
[1770988883233,11.2586,79.999,79.962,15.35853914]
[1770988883424,11.2586,79.999,79.963,4.09483914]
[1770988883626,3.90594645,79.998,79.963,4.09483914]
[1770988884526,3.90594645,79.998,79.97,3.2000631]
[1770988884835,11.259,79.996,79.97,3.2000631]
[1770988885533,11.2595,79.992,79.97,3.2000631]
[1770988887034,15.16544645,79.992,79.96,3.2000631]
[1770988887235,3.90594645,79.991,79.96,3.2000631]
[1770988890332,3.90594645,79.991,79.961,4.09483914]
[1770988890839,11.2599,79.99,79.961,4.09483914]
[1770988893243,3.99618482,79.989,79.96,3.2000631]
[1770988893445,3.99618482,79.989,79.953,172.6]
[1770988894042,3.99618482,79.985,79.953,172.6]
[1770988897843,3.79794887,79.995,79.961,4.03957107]
[1770988898844,3.79794887,79.995,79.962,4.03957107]
[1770988899540,11.2593,79.994,79.962,4.03957107]
[1770988899940,11.2601,79.988,79.962,4.03957107]
[1770988900644,3.79794887,79.994,79.962,4.03957107]
[1770988901847,11.2596,79.992,79.962,4.03957107]
[1770988902035,15.05754887,79.992,79.962,4.03957107]
[1770988903133,3.79794887,79.992,79.962,4.03957107]
[1770988905744,11.2598,79.99,79.962,4.03957107]
[1770988906144,3.79794887,79.992,79.97,3.2000631]
[1770988906450,3.79794887,79.992,79.963,11.2635]
[1770988907352,3.79794887,79.992,79.962,4.03957107]
[1770988907849,3.79794887,79.992,79.957,11.2644]
[1770988908045,3.79794887,79.992,79.961,4.03957107]
[1770988908955,11.6565403,80.026,79.97,3.2000631]
[1770988908956,3.79794887,80.001,79.97,3.2000631]
[1770988909150,11.2578,80.005,79.971,4.03957107]
[1770988910145,3.79794887,80.012,79.98,3.2000631]
[1770988910352,3.79794887,80.012,79.944,22.5325]
[1770988910353,9.08662061,80.029,79.991,4.03957107]
[1770988910552,3.79794887,80.032,79.991,4.03957107]
[1770988911052,15.05294887,80.025,79.991,4.03957107]
[1770988911446,3.79794887,80.024,79.991,4.03957107]
[1770988915848,3.79794887,80.024,79.992,11.2594]
[1770988916359,3.79794887,80.024,79.993,4.03957107]
[1770988916759,9.08662061,80.03,79.999,11.2585]
[1770988916958,9.08662061,80.034,80.0,3.2000631]
[1770988917158,9.08662061,80.033,80.0,3.2000631]
[1770988917357,9.08662061,80.034,80.0,3.2000631]
[1770988917860,9.08662061,80.034,80.001,11.2582]
[1770988918059,9.08662061,80.034,80.001,15.29777107]
[1770988918360,3.79794887,80.035,80.001,15.29777107]
[1770988918563,3.79794887,80.035,80.002,4.03957107]
[1770988918961,12.88456948,80.035,80.002,4.03957107]
[1770988919164,3.79794887,80.031,79.993,11.2592]
[1770988920361,3.2000631,80.02,79.97,3.2000631]
[1770988920563,3.79794887,80.009,79.961,4.03957107]
[1770988921866,4.08428637,80.005,79.968,11.2628]
[1770988922259,4.08428637,80.005,79.941,22.5332]
[1770988922260,4.08428637,80.005,79.95,4.11566919]
[1770988922464,4.08428637,80.003,79.95,7.31573229]
[1770988922659,4.08428637,80.003,79.96,3.2000631]
[1770988923964,4.08428637,80.002,79.961,11.2638]
[1770988924366,4.08428637,80.002,79.97,3.2000631]